fUST/lending_fUST_20241108
["ID","MTS","AMOUNT","RATE_DAILY","PERIOD"]
[341624656,1731042674937,-500.0,0.00024175,2]
[341624657,1731042674947,-169.30403693,0.00024175,2]
[341624658,1731042674959,-500.0,0.00024175,2]
[341624659,1731042674970,-500.0,0.00024175,2]
[341624660,1731042674980,-500.0,0.00024175,2]
[341624661,1731042674989,-500.0,0.00024175,2]
[341624662,1731042674999,-500.0,0.00024175,2]
[341624663,1731042675009,-500.0,0.00024175,2]
[341624664,1731042675019,-500.0,0.00024175,2]
[341624665,1731042675029,-500.0,0.00024175,2]
[341624666,1731042675039,-500.0,0.00024175,2]
[341624667,1731042675049,-320.31211077,0.00024175,2]
[341624668,1731042676776,162.038349,0.00013973,2]
[341624669,1731043133946,694.44444444,0.00020843,2]
[341624670,1731043284543,162.461294,0.00013973,2]
[341624687,1731043694484,3459.95365858,0.000167,2]
[341624688,1731043701779,214.75837704,0.000123,2]
[341624762,1731043832060,-300.0,0.00021092,2]
[341624764,1731043832071,-300.0,0.00021092,2]
[341624766,1731043832082,-24481.6681857,0.00021093,2]
[341624769,1731043832092,-234.710055,0.00021093,2]
[341624771,1731043832103,-175.139847,0.00021528,2]
[341624773,1731043832112,-694.44444444,0.00021609,2]
[341624775,1731043832121,-278.22753416,0.00021917,2]
[341624777,1731043832130,-500.0,0.00021917,2]
[341624779,1731043832140,-500.0,0.00021917,2]
[341624781,1731043832149,-11922.71,0.00021917,2]
[341624783,1731043832158,-11539.52,0.00021917,2]
[341624785,1731043832167,-986.59,0.00021917,2]
[341624787,1731043832176,-636.55,0.00021917,2]
[341624789,1731043832186,-381.10518301,0.00021917,2]
[341624791,1731043832195,-500.0,0.00021917,2]
[341624793,1731043832204,-500.0,0.00021917,2]
[341624795,1731043832214,-659.97,0.00021917,2]
[341624797,1731043832223,-500.0,0.00021917,2]
[341624799,1731043832232,-500.0,0.00021917,2]
[341624801,1731043832241,-500.0,0.00021917,2]
[341624803,1731043832251,-500.0,0.00021917,2]
[341624805,1731043832259,-500.0,0.00021917,2]
[341624807,1731043832269,-867.91,0.00021917,2]
[341624809,1731043832278,-500.0,0.00021917,2]
[341624811,1731043832287,-500.0,0.00021917,2]
[341624813,1731043832296,-500.0,0.00021917,2]
[341624815,1731043832306,-500.0,0.00021917,2]
[341624817,1731043832316,-500.0,0.00021917,2]
[341624819,1731043832325,-500.0,0.00021917,2]
[341624822,1731043832335,-500.0,0.00021917,2]
[341624824,1731043832344,-1287.21,0.00021917,2]
[341624825,1731043832354,-500.0,0.00021917,2]
[341624827,1731043832363,-572.6920933,0.00021917,2]
[341624830,1731043832372,-500.0,0.00021917,2]
[341624832,1731043832382,-500.0,0.00021917,2]
[341624834,1731043832391,-5216.33,0.00021917,2]
[341624836,1731043832400,-500.0,0.00021917,2]
[341624838,1731043832410,-500.0,0.00021917,2]
[341624840,1731043832419,-500.0,0.00021917,2]
[341624842,1731043832429,-500.0,0.00021917,2]
[341624844,1731043832438,-500.0,0.00021917,2]
[341624846,1731043832447,-500.0,0.00021917,2]
[341624848,1731043832457,-500.0,0.00021917,2]
[341624850,1731043832466,-526.27573827,0.00021917,2]
[341624852,1731043832475,-500.0,0.00021917,2]
[341624854,1731043832484,-500.0,0.00021917,2]
[341624856,1731043832493,-500.0,0.00022191,2]
[341624858,1731043832504,-500.0,0.00022191,2]
[341624860,1731043832513,-11922.71,0.00022191,2]
[341624862,1731043832522,-11539.52,0.00022191,2]
[341624864,1731043832531,-986.59,0.00022191,2]
[341624866,1731043832540,-636.55,0.00022191,2]
[341624867,1731043832549,-500.0,0.00022191,2]
[341624868,1731043832559,-500.0,0.00022191,2]
[341624869,1731043832568,-659.97,0.00022191,2]
[341624870,1731043832577,-500.0,0.00022191,2]
[341624871,1731043832587,-500.0,0.00022191,2]
[341624872,1731043832597,-500.0,0.00022191,2]
[341624873,1731043832607,-500.0,0.00022191,2]
[341624874,1731043832617,-500.0,0.00022191,2]
[341624875,1731043832627,-867.91,0.00022191,2]
[341624876,1731043832636,-274.86460785,0.00022191,2]
[341624877,1731043832646,-500.0,0.00022191,2]
[341624878,1731043832655,-500.0,0.00022191,2]
[341624880,1731043832664,-500.0,0.00022191,2]
[341624882,1731043832673,-500.0,0.00022191,2]
[341624884,1731043832683,-500.0,0.00022191,2]
[341624886,1731043832692,-500.0,0.00022191,2]
[341624888,1731043832702,-1287.21,0.00022191,2]
[341624890,1731043832714,-500.0,0.00022191,2]
[341624892,1731043832723,-500.0,0.00022191,2]
[341624894,1731043832734,-500.0,0.00022191,2]
[341624896,1731043832743,-5216.33,0.00022191,2]
[341624898,1731043832752,-500.0,0.00022191,2]
[341624900,1731043832762,-500.0,0.00022191,2]
[341624902,1731043832771,-500.0,0.00022191,2]
[341624904,1731043832780,-500.0,0.00022191,2]
[341624906,1731043832789,-500.0,0.00022191,2]
[341624908,1731043832799,-500.0,0.00022191,2]
[341624910,1731043832809,-500.0,0.00022191,2]
[341624912,1731043832818,-500.0,0.00022191,2]
[341624914,1731043832827,-234.710055,0.00022463,2]
[341624916,1731043832836,-500.0,0.00022464,2]
[341624918,1731043832846,-500.0,0.00022464,2]
[341624920,1731043832855,-500.0,0.00022464,2]
[341624922,1731043832865,-500.0,0.00022464,2]
[341624924,1731043832874,-500.0,0.00022464,2]
[341624926,1731043832883,-500.0,0.00022464,2]
[341624928,1731043832892,-500.0,0.00022464,2]
[341624930,1731043832901,-500.0,0.00022464,2]
[341624932,1731043832910,-500.0,0.00022464,2]
[341624934,1731043832919,-419.99245721,0.00022464,2]
[341624936,1731043832929,-500.0,0.00022464,2]
[341624938,1731043832939,-500.0,0.00022464,2]
[341624940,1731043832948,-500.0,0.00022464,2]
[341624942,1731043832958,-584.11214327,0.00022464,2]
[341624944,1731043832967,-463.08256151,0.00022464,2]
[341624946,1731043832976,-500.0,0.00022464,2]
[341624947,1731043832985,-500.0,0.00022464,2]
[341624949,1731043832997,-500.0,0.00022464,2]
[341624951,1731043833007,-499.99999999,0.00022464,2]
[341624953,1731043833016,-500.0,0.00022465,2]
[341624955,1731043833025,-500.0,0.00022465,2]
[341624957,1731043833034,-11922.71,0.00022465,2]
[341624959,1731043833045,-8320.17666537,0.00022465,2]
[341624989,1731043833332,-262.99548383,0.00022465,2]
[341625069,1731043838021,-5900.29,0.00021917,2]
[341625070,1731043838030,-500.0,0.00021917,2]
[341625071,1731043838041,-3531.58779856,0.00022191,2]
[341625072,1731043838052,-2368.70220144,0.00022191,2]
[341625073,1731043838062,-500.0,0.00022191,2]
[341625074,1731043838074,-2956.3478508,0.00022465,2]
[341625075,1731043838083,-986.59,0.00022465,2]
[341625076,1731043838092,-636.55,0.00022465,2]
[341625077,1731043838103,-473.99942402,0.00022465,2]
[341625078,1731043838112,-500.0,0.00022465,2]
[341625079,1731043838121,-659.97,0.00022465,2]
[341625080,1731043838130,-500.0,0.00022465,2]
[341625081,1731043838139,-523.52651081,0.00022465,2]
[341625082,1731043838148,-500.0,0.00022465,2]
[341625083,1731043838158,-500.0,0.00022465,2]
[341625084,1731043838168,-867.91,0.00022465,2]
[341625085,1731043838177,-500.0,0.00022465,2]
[341625086,1731043838187,-500.0,0.00022465,2]
[341625087,1731043838195,-500.0,0.00022465,2]
[341625088,1731043838205,-500.0,0.00022465,2]
[341625089,1731043838214,-500.0,0.00022465,2]
[341625090,1731043838223,-500.0,0.00022465,2]
[341625091,1731043838232,-500.0,0.00022465,2]
[341625092,1731043838241,-1287.21,0.00022465,2]
[341625093,1731043838251,-500.0,0.00022465,2]
[341625094,1731043838260,-500.0,0.00022465,2]
[341625095,1731043838269,-500.0,0.00022465,2]
[341625096,1731043838278,-5216.33,0.00022465,2]
[341625097,1731043838287,-500.0,0.00022465,2]
[341625098,1731043838296,-517.66008293,0.00022465,2]
[341625099,1731043838306,-500.0,0.00022465,2]
[341625100,1731043838315,-540.07445125,0.00022465,2]
[341625101,1731043838324,-500.0,0.00022465,2]
[341625102,1731043838334,-500.0,0.00022465,2]
[341625103,1731043838343,-500.0,0.00022465,2]
[341625104,1731043838354,-500.0,0.00022465,2]
[341625105,1731043838363,-5900.29,0.00022465,2]
[341625106,1731043838373,-287.48196514,0.00022465,2]
[341625107,1731043838382,-184.92826503,0.00022738,2]
[341625108,1731043838392,-441.99060555,0.00022738,2]
[341625109,1731043838402,-279.00863999,0.00022738,2]
[341625110,1731043838411,-174.27133964,0.00022738,2]
[341625111,1731043838420,-207.16656348,0.00022738,2]
[341625112,1731043838430,-500.0,0.00022739,2]
[341625113,1731043838439,-11922.71,0.00022739,2]
[341625114,1731043838449,-11539.52,0.00022739,2]
[341625115,1731043838458,-986.59,0.00022739,2]
[341625116,1731043838579,-636.55,0.00022739,2]
[341625117,1731043838588,-500.0,0.00022739,2]
[341625118,1731043838598,-659.97,0.00022739,2]
[341625119,1731043838611,-500.0,0.00022739,2]
[341625120,1731043838620,-500.0,0.00022739,2]
[341625121,1731043838629,-500.0,0.00022739,2]
[341625122,1731043838638,-867.91,0.00022739,2]
[341625123,1731043838647,-500.0,0.00022739,2]
[341625124,1731043838657,-500.0,0.00022739,2]
[341625125,1731043838666,-500.0,0.00022739,2]
[341625126,1731043838676,-500.0,0.00022739,2]
[341625127,1731043838686,-500.0,0.00022739,2]
[341625128,1731043838696,-500.0,0.00022739,2]
[341625129,1731043838706,-500.0,0.00022739,2]
[341625130,1731043838715,-1287.21,0.00022739,2]
[341625131,1731043838725,-500.0,0.00022739,2]
[341625132,1731043838734,-500.0,0.00022739,2]
[341625133,1731043838743,-500.0,0.00022739,2]
[341625134,1731043838752,-5216.33,0.00022739,2]
[341625135,1731043838763,-500.0,0.00022739,2]
[341625136,1731043838773,-500.0,0.00022739,2]
[341625137,1731043838783,-500.0,0.00022739,2]
[341625138,1731043838792,-500.0,0.00022739,2]
[341625139,1731043838802,-500.0,0.00022739,2]
[341625140,1731043838813,-613.27546781,0.00022739,2]
[341625141,1731043838822,-5900.29,0.00022739,2]
[341625142,1731043838832,-500.0,0.00022799,2]
[341625143,1731043838853,-500.0,0.00022799,2]
[341625144,1731043838867,-500.0,0.00022799,2]
[341625145,1731043838876,-500.0,0.00022799,2]
[341625146,1731043838886,-500.0,0.00022799,2]
[341625147,1731043838895,-500.0,0.00022799,2]
[341625148,1731043838908,-500.0,0.00022799,2]
[341625149,1731043838918,-200.0,0.00022799,2]
[341625150,1731043838929,-500.0,0.00022799,2]
[341625151,1731043838939,-500.0,0.00022799,2]
[341625152,1731043838951,-500.0,0.00022799,2]
[341625153,1731043838961,-500.0,0.00022799,2]
[341625154,1731043838971,-500.0,0.00022799,2]
[341625155,1731043838980,-500.0,0.00022799,2]
[341625156,1731043838989,-500.0,0.00022799,2]
[341625157,1731043839002,-500.0,0.00022799,2]
[341625158,1731043839011,-500.0,0.00022799,2]
[341625159,1731043839020,-500.0,0.00022799,2]
[341625160,1731043839029,-500.0,0.00022799,2]
[341625161,1731043839039,-500.0,0.00022799,2]
[341625162,1731043839049,-500.0,0.00022799,2]
[341625163,1731043839058,-586.5,0.00022799,2]
[341625164,1731043839067,-500.0,0.00022799,2]
[341625165,1731043839077,-500.0,0.00022799,2]
[341625166,1731043839086,-500.0,0.00022799,2]
[341625167,1731043839095,-543.75916293,0.00022799,2]
[341625168,1731043839106,-500.0,0.00022799,2]
[341625169,1731043839115,-626.42173807,0.00022799,2]
[341625170,1731043839124,-500.0,0.00022799,2]
[341625171,1731043839133,-516.8920544,0.00022799,2]
[341625172,1731043839143,-166.90578417,0.00022799,2]
[341625173,1731043839152,-525.38833325,0.00022799,2]
[341625174,1731043839161,-500.0,0.00022799,2]
[341625175,1731043839170,-500.0,0.00022799,2]
[341625176,1731043839180,-500.0,0.00022799,2]
[341625177,1731043839189,-500.0,0.00022799,2]
[341625178,1731043839199,-500.0,0.00022799,2]
[341625179,1731043839208,-500.0,0.00022799,2]
[341625180,1731043839217,-500.0,0.00022799,2]
[341625181,1731043839226,-626.80552227,0.00022799,2]
[341625182,1731043839236,-500.0,0.00022799,2]
[341625183,1731043839245,-348.8975375,0.00022799,2]
[341625184,1731043839254,-500.0,0.00022799,2]
[341625185,1731043839263,-500.0,0.00022799,2]
[341625186,1731043839272,-500.0,0.00022799,2]
[341625187,1731043839281,-482.14960203,0.00022799,2]
[341625188,1731043839290,-500.0,0.00022799,2]
[341625189,1731043839299,-500.0,0.00022799,2]
[341625190,1731043839309,-353.85689997,0.00022799,2]
[341625191,1731043839318,-500.0,0.00022799,2]
[341625192,1731043839327,-500.0,0.00022799,2]
[341625193,1731043839336,-500.0,0.00022799,2]
[341625194,1731043839345,-250.0,0.00022799,2]
[341625195,1731043839356,-500.0,0.00022799,2]
[341625196,1731043839365,-500.0,0.00022799,2]
[341625197,1731043839375,-500.0,0.00022799,2]
[341625198,1731043839384,-454.1823233,0.00022799,2]
[341625199,1731043839393,-500.0,0.00022799,2]
[341625200,1731043839402,-513.10229293,0.00022799,2]
[341625202,1731043839411,-500.0,0.00022799,2]
[341625203,1731043839421,-500.0,0.00022799,2]
[341625204,1731043839430,-500.0,0.00022799,2]
[341625205,1731043839439,-500.0,0.00022799,2]
[341625206,1731043839448,-500.0,0.00022799,2]
[341625207,1731043839458,-2336.0,0.00022799,2]
[341625208,1731043839467,-500.0,0.00022799,2]
[341625209,1731043839477,-500.0,0.00022799,2]
[341625210,1731043839487,-521.64824097,0.00022799,2]
[341625211,1731043839497,-500.0,0.00022799,2]
[341625212,1731043839506,-500.0,0.00022799,2]
[341625213,1731043839515,-500.0,0.00022799,2]
[341625214,1731043839524,-510.71984746,0.00022799,2]
[341625215,1731043839533,-500.0,0.00022799,2]
[341625216,1731043839542,-500.0,0.00022799,2]
[341625217,1731043839551,-500.0,0.00022799,2]
[341625218,1731043839560,-556.54285724,0.00022799,2]
[341625219,1731043839569,-500.0,0.00022799,2]
[341625220,1731043839578,-500.0,0.00022799,2]
[341625221,1731043839587,-500.0,0.00022799,2]
[341625222,1731043839596,-500.0,0.00022799,2]
[341625223,1731043839608,-500.0,0.00022799,2]
[341625224,1731043839617,-500.0,0.00022799,2]
[341625225,1731043839626,-500.0,0.00022799,2]
[341625226,1731043839635,-500.0,0.00022799,2]
[341625227,1731043839645,-500.0,0.00022799,2]
[341625228,1731043839654,-500.0,0.00022799,2]
[341625229,1731043839663,-511.05661189,0.00022799,2]
[341625230,1731043839673,-500.0,0.00022799,2]
[341625231,1731043839683,-500.0,0.00022799,2]
[341625232,1731043839692,-500.0,0.00022799,2]
[341625233,1731043839701,-500.0,0.00022799,2]
[341625234,1731043839711,-500.0,0.00022799,2]
[341625235,1731043839721,-500.0,0.00022799,2]
[341625236,1731043839731,-573.94717196,0.00022799,2]
[341625237,1731043839742,-500.0,0.00022799,2]
[341625238,1731043839752,-500.0,0.00022799,2]
[341625239,1731043839762,-500.0,0.00022799,2]
[341625240,1731043839771,-500.0,0.00022799,2]
[341625241,1731043839781,-504.11217288,0.00022799,2]
[341625242,1731043839790,-500.0,0.00022799,2]
[341625243,1731043839799,-500.0,0.00022799,2]
[341625244,1731043839808,-500.0,0.00022799,2]
[341625245,1731043839817,-500.0,0.00022799,2]
[341625246,1731043839826,-500.0,0.00022799,2]
[341625247,1731043839836,-500.0,0.00022799,2]
[341625248,1731043839845,-500.0,0.00022799,2]
[341625249,1731043839855,-502.96674956,0.00022799,2]
[341625250,1731043839871,-503.02156061,0.00022799,2]
[341625251,1731043839880,-500.0,0.00022799,2]
[341625252,1731043839889,-500.0,0.00022799,2]
[341625254,1731043839898,-500.0,0.00022799,2]
[341625255,1731043839908,-500.0,0.00022799,2]
[341625256,1731043839918,-329.16495388,0.00022799,2]
[341625257,1731043839927,-500.0,0.00022799,2]
[341625258,1731043839936,-500.0,0.00022799,2]
[341625259,1731043839945,-430.08548621,0.00022799,2]
[341625260,1731043839954,-574.20864623,0.00022799,2]
[341625261,1731043839964,-500.0,0.00022799,2]
[341625262,1731043839973,-567.08,0.00022799,2]
[341625263,1731043839982,-595.86946407,0.00022799,2]
[341625264,1731043839993,-500.0,0.00022799,2]
[341625265,1731043840003,-500.0,0.00022799,2]
[341625266,1731043840012,-500.0,0.00022799,2]
[341625267,1731043840021,-317.09545816,0.00022799,2]
[341625268,1731043840031,-500.0,0.00022799,2]
[341625269,1731043840041,-500.0,0.00022799,2]
[341625270,1731043840050,-500.0,0.00022799,2]
[341625271,1731043840059,-405.76062655,0.00022799,2]
[341625272,1731043840068,-500.0,0.00022799,2]
[341625273,1731043840078,-500.0,0.00022799,2]
[341625274,1731043840088,-500.0,0.00022799,2]
[341625275,1731043840097,-500.0,0.00022799,2]
[341625276,1731043840112,-500.0,0.00022799,2]
[341625277,1731043840121,-500.0,0.00022799,2]
[341625278,1731043840130,-500.0,0.00022799,2]
[341625279,1731043840140,-500.0,0.00022799,2]
[341625280,1731043840149,-500.0,0.00022799,2]
[341625281,1731043840158,-500.0,0.00022799,2]
[341625282,1731043840167,-500.0,0.00022799,2]
[341625283,1731043840176,-504.084689,0.00022799,2]
[341625284,1731043840186,-406.02637251,0.00022799,2]
[341625285,1731043840195,-500.0,0.00022799,2]
[341625286,1731043840207,-500.0,0.00022799,2]
[341625287,1731043840217,-420.85057791,0.00022799,2]
[341625288,1731043840226,-500.0,0.00022799,2]
[341625289,1731043840235,-500.0,0.00022799,2]
[341625290,1731043840245,-500.0,0.00022799,2]
[341625291,1731043840254,-500.0,0.00022799,2]
[341625292,1731043840263,-500.0,0.00022799,2]
[341625293,1731043840272,-500.0,0.00022799,2]
[341625294,1731043840281,-500.0,0.00022799,2]
[341625295,1731043840290,-500.0,0.00022799,2]
[341625296,1731043840299,-500.0,0.00022799,2]
[341625297,1731043840309,-3076.87,0.00022799,2]
[341625298,1731043840318,-500.0,0.00022799,2]
[341625299,1731043840327,-503.31211845,0.00022799,2]
[341625300,1731043840336,-500.0,0.00022799,2]
[341625301,1731043840346,-598.61576623,0.00022799,2]
[341625302,1731043840358,-581.74421242,0.00022799,2]
[341625303,1731043840367,-500.0,0.00022799,2]
[341625304,1731043840376,-937.69,0.00022799,2]
[341625305,1731043840385,-500.0,0.00022799,2]
[341625306,1731043840395,-500.0,0.00022799,2]
[341625307,1731043840404,-500.0,0.00022799,2]
[341625308,1731043840414,-500.0,0.00022799,2]
[341625309,1731043840423,-592.29027667,0.00022799,2]
[341625310,1731043840433,-509.72254863,0.00022799,2]
[341625311,1731043840442,-500.0,0.00022799,2]
[341625312,1731043840451,-500.0,0.00022799,2]
[341625313,1731043840461,-510.80312441,0.00022799,2]
[341625314,1731043840470,-500.0,0.00022799,2]
[341625315,1731043840479,-500.0,0.00022799,2]
[341625316,1731043840488,-500.0,0.00022799,2]
[341625317,1731043840497,-500.0,0.00022799,2]
[341625318,1731043840506,-508.15460528,0.00022799,2]
[341625319,1731043840515,-500.0,0.00022799,2]
[341625320,1731043840525,-500.0,0.00022799,2]
[341625321,1731043840534,-500.0,0.00022799,2]
[341625322,1731043840543,-500.0,0.00022799,2]
[341625323,1731043840552,-500.0,0.00022799,2]
[341625324,1731043840561,-511.98752116,0.00022799,2]
[341625325,1731043840570,-899.49,0.00022799,2]
[341625326,1731043840579,-508.03704005,0.00022799,2]
[341625327,1731043840589,-500.0,0.00022799,2]
[341625328,1731043840598,-500.0,0.00022799,2]
[341625329,1731043840610,-500.0,0.00022799,2]
[341625330,1731043840619,-500.0,0.00022799,2]
[341625331,1731043840628,-640.39138322,0.00022799,2]
[341625332,1731043840638,-500.0,0.00022799,2]
[341625333,1731043840647,-500.0,0.00022799,2]
[341625334,1731043840655,-522.40810284,0.00022799,2]
[341625335,1731043840664,-500.0,0.00022799,2]
[341625336,1731043840673,-500.0,0.00022799,2]
[341625337,1731043840682,-500.0,0.00022799,2]
[341625338,1731043840691,-456.89889221,0.00022799,2]
[341625339,1731043840700,-500.0,0.00022799,2]
[341625340,1731043840783,-500.0,0.00022799,2]
[341625341,1731043840802,-500.0,0.00022799,2]
[341625342,1731043840812,-500.0,0.00022799,2]
[341625343,1731043840821,-500.0,0.00022799,2]
[341625344,1731043840830,-513.59196675,0.00022799,2]
[341625345,1731043840839,-500.0,0.00022799,2]
[341625346,1731043840849,-500.0,0.00022799,2]
[341625347,1731043840861,-500.0,0.00022799,2]
[341625348,1731043840870,-500.0,0.00022799,2]
[341625349,1731043840879,-798.86,0.00022799,2]
[341625350,1731043840888,-515.91,0.00022799,2]
[341625351,1731043840897,-500.0,0.00022799,2]
[341625352,1731043840906,-500.0,0.00022799,2]
[341625353,1731043840915,-500.0,0.00022799,2]
[341625354,1731043840924,-500.0,0.00022799,2]
[341625355,1731043840933,-500.0,0.00022799,2]
[341625356,1731043840942,-500.0,0.00022799,2]
[341625357,1731043840951,-500.0,0.00022799,2]
[341625358,1731043840960,-500.0,0.00022799,2]
[341625359,1731043840970,-500.0,0.00022799,2]
[341625360,1731043840979,-510.77554773,0.00022799,2]
[341625361,1731043840989,-500.0,0.00022799,2]
[341625362,1731043841002,-500.0,0.00022799,2]
[341625363,1731043841011,-500.0,0.00022799,2]
[341625364,1731043841019,-597.24545072,0.00022799,2]
[341625365,1731043841028,-500.0,0.00022799,2]
[341625366,1731043841039,-500.0,0.00022799,2]
[341625367,1731043841048,-500.0,0.00022799,2]
[341625368,1731043841058,-500.0,0.00022799,2]
[341625369,1731043841068,-500.0,0.00022799,2]
[341625370,1731043841078,-500.0,0.00022799,2]
[341625371,1731043841087,-500.0,0.00022799,2]
[341625372,1731043841096,-500.0,0.00022799,2]
[341625373,1731043841106,-500.0,0.00022799,2]
[341625374,1731043841115,-500.0,0.00022799,2]
[341625375,1731043841124,-206.22056308,0.00022799,2]
[341625376,1731043841133,-500.0,0.00022799,2]
[341625377,1731043841142,-500.0,0.00022799,2]
[341625378,1731043841154,-504.38450894,0.00022799,2]
[341625379,1731043841164,-500.0,0.00022799,2]
[341625380,1731043841174,-500.0,0.00022799,2]
[341625381,1731043841183,-500.0,0.00022799,2]
[341625382,1731043841192,-504.17219262,0.00022799,2]
[341625383,1731043841201,-500.0,0.00022799,2]
[341625384,1731043841210,-462.14527762,0.00022799,2]
[341625385,1731043841219,-229.6212196,0.00022799,2]
[341625386,1731043841228,-500.0,0.00022799,2]
[341625387,1731043841237,-652.08,0.00022799,2]
[341625388,1731043841246,-505.76797436,0.00022799,2]
[341625389,1731043841255,-500.0,0.00022799,2]
[341625390,1731043841264,-500.0,0.00022799,2]
[341625391,1731043841273,-500.0,0.00022799,2]
[341625392,1731043841282,-500.0,0.00022799,2]
[341625393,1731043841291,-500.0,0.00022799,2]
[341625394,1731043841300,-500.0,0.00022799,2]
[341625395,1731043841309,-500.0,0.00022799,2]
[341625396,1731043841319,-500.0,0.00022799,2]
[341625397,1731043841328,-500.0,0.00022799,2]
[341625398,1731043841337,-500.0,0.00022799,2]
[341625399,1731043841346,-500.0,0.00022799,2]
[341625400,1731043841357,-500.0,0.00022799,2]
[341625401,1731043841366,-500.0,0.00022799,2]
[341625402,1731043841375,-500.0,0.00022799,2]
[341625403,1731043841384,-500.0,0.00022799,2]
[341625404,1731043841393,-512.60707858,0.00022799,2]
[341625405,1731043841404,-500.0,0.00022799,2]
[341625406,1731043841420,-500.0,0.00022799,2]
[341625407,1731043841431,-500.0,0.00022799,2]
[341625408,1731043841440,-502.22676742,0.00022799,2]
[341625409,1731043841449,-500.0,0.00022799,2]
[341625410,1731043841458,-500.0,0.00022799,2]
[341625411,1731043841467,-500.0,0.00022799,2]
[341625412,1731043841476,-500.0,0.00022799,2]
[341625413,1731043841486,-500.0,0.00022799,2]
[341625414,1731043841495,-512.4965751,0.00022799,2]
[341625415,1731043841504,-500.0,0.00022799,2]
[341625416,1731043841513,-512.78946019,0.00022799,2]
[341625417,1731043841523,-511.17798038,0.00022799,2]
[341625418,1731043841533,-510.92725166,0.00022799,2]
[341625419,1731043841542,-500.0,0.00022799,2]
[341625420,1731043841551,-500.0,0.00022799,2]
[341625421,1731043841560,-500.0,0.00022799,2]
[341625422,1731043841569,-500.0,0.00022799,2]
[341625423,1731043841579,-500.0,0.00022799,2]
[341625424,1731043841588,-506.9989172,0.00022799,2]
[341625425,1731043841596,-500.0,0.00022799,2]
[341625426,1731043841607,-500.0,0.00022799,3]
[341625427,1731043841616,-505.4603386,0.00022799,2]
[341625428,1731043841625,-500.0,0.000228,2]
[341625429,1731043841634,-500.0,0.000228,2]
[341625430,1731043841643,-500.0,0.00022801,2]
[341625431,1731043841652,-500.0,0.00022801,2]
[341625432,1731043841661,-500.0,0.00022801,2]
[341625433,1731043841670,-500.0,0.00022801,2]
[341625434,1731043841680,-500.0,0.00022801,2]
[341625435,1731043841690,-500.0,0.00022801,2]
[341625436,1731043841701,-500.0,0.00022801,2]
[341625437,1731043841710,-500.0,0.00022801,2]
[341625438,1731043841719,-500.0,0.00022801,2]
[341625439,1731043841728,-500.0,0.00022801,2]
[341625440,1731043841738,-500.0,0.00022801,2]
[341625441,1731043841747,-500.0,0.00022801,2]
[341625442,1731043841756,-500.0,0.00022801,2]
[341625443,1731043841765,-500.0,0.00022801,2]
[341625444,1731043841774,-500.0,0.00022801,2]
[341625445,1731043841783,-500.0,0.00022801,2]
[341625446,1731043841792,-500.0,0.00022801,2]
[341625447,1731043841802,-500.0,0.00022801,2]